bitfinex/quotes_BTCUSD_20250723
["timestamp","ask_amount","ask_price","bid_price","bid_amount"]
[1753275835895,0.08740425,118220.0,118210.0,0.80722886]
[1753275836860,0.02110425,118220.0,118210.0,0.90915518]
[1753275837084,0.02110425,118220.0,118210.0,1.11227518]
[1753275837312,0.02110425,118220.0,118210.0,0.97195518]
[1753275837532,0.02110425,118220.0,118210.0,1.11227518]
[1753275839571,0.02110425,118220.0,118210.0,1.45227518]
[1753275840017,1e-08,118220.0,118210.0,1.56737518]
[1753275841438,1e-08,118220.0,118210.0,1.57454046]
[1753275841673,0.00889537,118260.0,118250.0,0.19450229]
[1753275841674,0.00044,118260.0,118250.0,0.19450229]
[1753275841882,0.00044,118260.0,118250.0,0.80085621]
[1753275842103,0.06793,118260.0,118250.0,0.3432388]
[1753275842320,0.06793,118260.0,118250.0,0.7073864]
[1753275842567,0.07114,118260.0,118250.0,0.3432388]
[1753275842826,0.07959537,118260.0,118250.0,0.3432388]
[1753275843062,0.07114,118260.0,118250.0,0.34371093]
[1753275843504,0.26562585,118260.0,118250.0,0.34371122]
[1753275844021,0.25717041,118260.0,118250.0,0.33525485]
[1753275844293,0.25817041,118260.0,118250.0,0.33525485]
[1753275844547,0.09750689,118260.0,118250.0,0.35216695]
[1753275845082,0.10250689,118260.0,118250.0,0.35216695]
[1753275845292,0.09750668,118260.0,118250.0,0.35216695]
[1753275845513,0.09605095,118260.0,118250.0,0.40429711]
[1753275845739,0.08759544,118260.0,118250.0,0.40429711]
[1753275845952,0.09059544,118260.0,118250.0,0.40429711]
[1753275846357,0.09905095,118260.0,118250.0,0.40429711]
[1753275846598,0.1075066,118260.0,118250.0,0.40429711]
[1753275847038,0.09905095,118260.0,118250.0,0.35216695]
[1753275848173,0.08214,118260.0,118250.0,0.35216695]
[1753275848390,0.08214,118260.0,118250.0,1.57306773]
[1753275848391,0.01144,118260.0,118250.0,1.57306773]
[1753275848618,1e-08,118260.0,118250.0,1.57306773]
[1753275848892,1e-08,118260.0,118250.0,1.74634403]
[1753275849112,0.06781,118280.0,118270.0,0.1944694]
[1753275849331,0.06781,118280.0,118270.0,0.69038286]
[1753275849546,0.0646,118280.0,118270.0,0.69038286]
[1753275849761,0.06659,118280.0,118270.0,0.3347094]
[1753275849985,0.0698,118280.0,118270.0,0.3347094]
[1753275850680,0.08025387,118280.0,118270.0,0.3347094]
[1753275850908,0.0718,118280.0,118270.0,0.38678204]
[1753275851124,0.0718,118280.0,118270.0,0.3347094]
[1753275852033,0.08870823,118280.0,118270.0,0.3347094]
[1753275852254,0.0718,118280.0,118270.0,0.3347094]
[1753275852474,0.08870788,118280.0,118270.0,0.3347094]
[1753275852707,0.09716203,118280.0,118270.0,0.3347094]
[1753275852923,0.08870788,118280.0,118270.0,0.3347094]
[1753275853145,0.26625296,118280.0,118270.0,0.1402]
[1753275853373,0.23161889,118260.0,118250.0,0.19500432]
[1753275853593,0.08461117,118260.0,118250.0,0.32671784]
[1753275853811,0.27064151,118260.0,118250.0,0.33517478]
[1753275854039,0.09306675,118260.0,118250.0,0.34363101]
[1753275854258,0.07615544,118260.0,118250.0,0.35208716]
[1753275854469,0.08461102,118260.0,118250.0,0.36932745]
[1753275854906,0.10541102,118260.0,118250.0,0.35208716]
[1753275855126,0.10541102,118260.0,118250.0,0.35508716]
[1753275855313,0.0885,118260.0,118250.0,0.35708716]
[1753275855579,0.10541088,118260.0,118250.0,0.35208716]
[1753275855822,0.10841088,118260.0,118250.0,0.35208716]
[1753275856026,0.09995537,118260.0,118250.0,0.40925306]
[1753275856233,0.11686675,118260.0,118250.0,0.40925306]
[1753275856470,0.09995537,118260.0,118250.0,0.40925306]
[1753275856910,0.0915,118260.0,118250.0,0.40925306]
[1753275857124,0.09995537,118260.0,118250.0,0.35308716]
[1753275857331,0.29444108,118260.0,118250.0,0.33617478]
[1753275857551,0.12532219,118260.0,118250.0,0.34463093]
[1753275857772,0.12532212,118260.0,118250.0,0.34463093]
[1753275858938,0.11686639,118260.0,118250.0,0.34463093]
[1753275859186,0.08951,118260.0,118250.0,0.75672466]
[1753275859416,0.09995537,118260.0,118250.0,0.4010512]
[1753275859859,0.29444144,118260.0,118250.0,0.33617471]
[1753275860088,0.27753049,118260.0,118250.0,0.00147213]
[1753275860334,0.36200779,118260.0,118250.0,0.00147213]
[1753275860550,0.36200779,118260.0,118250.0,0.14163213]
[1753275861197,0.35900779,118260.0,118250.0,0.14063213]
[1753275861458,0.36200779,118260.0,118250.0,0.14063213]
[1753275861711,0.36700779,118260.0,118250.0,0.14063213]
[1753275861954,1.06268125,118260.0,118250.0,0.14063213]
[1753275862426,1.07835772,118260.0,118250.0,0.14063213]
[1753275863129,0.72268426,118260.0,118250.0,0.14063213]
[1753275863357,0.72268426,118260.0,118250.0,0.1792185]
[1753275863609,0.72268426,118260.0,118250.0,0.14063213]
[1753275863856,0.12908749,118260.0,118250.0,0.33513442]
[1753275864103,0.0965,118260.0,118250.0,0.33513442]
[1753275864333,0.06371,118260.0,118250.0,0.33513442]
[1753275864568,0.0288,118260.0,118250.0,0.74969011]
[1753275865488,0.0238,118260.0,118250.0,0.74969011]
[1753275865721,0.0248,118260.0,118250.0,0.74969011]
[1753275865942,0.0218,118260.0,118250.0,0.74969011]
[1753275866172,0.0218,118260.0,118250.0,0.69080788]
[1753275866402,0.0218,118260.0,118250.0,0.33513442]
[1753275866653,0.0228,118260.0,118250.0,0.33513442]
[1753275868340,0.03125537,118260.0,118250.0,0.33513442]
[1753275868556,0.03971081,118260.0,118250.0,0.33513442]
[1753275868781,0.03125537,118260.0,118250.0,0.33513442]
[1753275868994,0.0228,118260.0,118250.0,0.33513442]
[1753275869216,0.0228,118260.0,118250.0,0.41961172]
[1753275869441,0.0228,118260.0,118250.0,0.77528518]
[1753275870091,0.0312553,118260.0,118250.0,0.77528518]
[1753275870311,0.0312553,118260.0,118250.0,0.69080788]
[1753275870527,0.0228,118260.0,118250.0,0.33513442]
[1753275871400,0.0228,118260.0,118250.0,0.33509442]
[1753275871858,0.0312553,118260.0,118250.0,0.33509442]
[1753275872065,0.0228,118260.0,118250.0,0.35989479]
[1753275873931,0.0228,118260.0,118250.0,0.80004555]
[1753275874145,0.0228,118260.0,118250.0,0.71556825]
[1753275874366,0.0228,118260.0,118250.0,0.88119457]
[1753275874557,0.0228,118260.0,118250.0,1.22119457]
[1753275874817,0.0228,118260.0,118250.0,1.57686803]
[1753275875040,0.0228,118260.0,118250.0,1.66134533]
[1753275875279,0.0228,118260.0,118250.0,1.30567187]
[1753275875546,0.0218,118260.0,118250.0,1.30567187]
[1753275875799,0.0208,118260.0,118250.0,1.30867187]
[1753275876035,0.0208,118260.0,118250.0,1.31167187]
[1753275877681,0.0004,118300.0,118290.0,0.19443651]
[1753275877938,0.00236,118300.0,118290.0,0.69014997]
[1753275878180,0.00545,118300.0,118290.0,0.3746237]
[1753275878394,0.00545,118300.0,118290.0,0.33447651]
[1753275878395,0.03605,118300.0,118290.0,0.33447651]
[1753275878635,0.06735,118300.0,118290.0,0.19443651]
[1753275878891,0.06735,118300.0,118290.0,0.33447651]
[1753275879120,0.06735,118300.0,118290.0,0.33494864]
[1753275879353,0.07035,118300.0,118290.0,0.33494864]
[1753275879599,0.07035,118300.0,118290.0,0.40734608]
[1753275879600,0.07880244,118300.0,118290.0,0.40734608]
[1753275879807,0.09570767,118300.0,118290.0,0.33494864]
[1753275880033,0.07880244,118300.0,118290.0,0.33494864]
[1753275880463,0.09670796,118300.0,118290.0,0.33494864]
[1753275880680,0.09670788,118300.0,118290.0,0.33494864]
[1753275880898,0.10516082,118300.0,118290.0,0.33494864]
[1753275881115,0.08825509,118300.0,118290.0,0.33494864]
[1753275882588,0.10516075,118300.0,118290.0,0.18645535]
[1753275882811,0.34179466,118300.0,118290.0,0.14047213]
[1753275883026,0.84746812,118300.0,118290.0,0.00047213]
[1753275883252,0.84746812,118300.0,118290.0,0.14047213]
[1753275883458,0.49079466,118300.0,118290.0,0.14047213]
[1753275883694,0.48779466,118300.0,118290.0,0.14047213]
[1753275883899,0.48779466,118300.0,118290.0,0.31800191]
[1753275884106,0.49279466,118300.0,118290.0,0.14047213]
[1753275884318,0.48434194,118300.0,118290.0,0.14047213]
[1753275884478,0.48434194,118300.0,118290.0,0.00047213]
[1753275884687,0.48434194,118300.0,118290.0,0.14043213]
[1753275885090,0.22435,118300.0,118290.0,0.38866104]
[1753275885305,0.07435,118300.0,118290.0,0.45628858]
[1753275885494,0.0074,118300.0,118290.0,0.81196204]
[1753275885939,0.0074,118300.0,118290.0,0.45628858]
[1753275886349,0.09295523,118300.0,118290.0,0.33486864]
[1753275886496,0.26201736,118300.0,118290.0,0.14043213]
[1753275886694,0.26201736,118300.0,118290.0,0.30950812]
[1753275886901,0.26201736,118300.0,118290.0,0.31796191]
[1753275887137,0.25356464,118300.0,118290.0,0.14043213]
[1753275887341,0.3951117,118300.0,118290.0,0.00047213]
[1753275887542,0.75078516,118300.0,118290.0,0.14039213]
[1753275887750,0.83526246,118300.0,118290.0,0.14039213]
[1753275887946,1.17526246,118300.0,118290.0,0.14039213]
[1753275888423,1.17326246,118300.0,118290.0,0.14039213]
[1753275888914,1.17026246,118300.0,118290.0,0.14039213]
[1753275889365,1.57326246,118300.0,118290.0,0.14039213]
[1753275889630,1.56826246,118300.0,118290.0,0.14039213]
[1753275889839,1.57026246,118300.0,118290.0,0.14039213]
[1753275890068,1.218589,118300.0,118290.0,0.14039213]
[1753275890503,1.57426246,118300.0,118290.0,0.14039213]
[1753275890950,1.57026246,118300.0,118290.0,0.14039213]
[1753275891841,1.214589,118300.0,118290.0,0.14039213]
[1753275892995,1.217589,118300.0,118290.0,0.14039213]
[1753275893239,1.220589,118300.0,118290.0,0.14039213]
[1753275893973,0.73904194,118300.0,118290.0,0.30946812]
[1753275894226,0.75594767,118300.0,118290.0,0.33482864]
[1753275894450,0.77674767,118300.0,118290.0,0.33482879]
[1753275894671,0.77674767,118300.0,118290.0,0.34328216]
[1753275894888,0.77674767,118300.0,118290.0,0.33482879]
[1753275895114,0.77674767,118300.0,118290.0,0.34328216]
[1753275895341,0.2076854,118300.0,118290.0,0.36821236]
[1753275895573,0.10630251,118300.0,118290.0,0.36821236]
[1753275895794,0.11475509,118300.0,118290.0,0.36821236]
[1753275896020,0.12320781,118300.0,118290.0,0.35173545]
[1753275896449,0.10630251,118300.0,118290.0,0.35173545]
[1753275896667,0.09785,118300.0,118290.0,0.35173545]
[1753275897113,0.06695,118300.0,118290.0,0.35173545]
[1753275897329,0.03425,118300.0,118290.0,0.41058076]
[1753275897579,0.04270258,118300.0,118290.0,0.35173545]
[1753275897807,0.05115523,118300.0,118290.0,0.35173545]
[1753275898240,0.03425,118300.0,118290.0,0.35173545]
[1753275898458,0.04270244,118300.0,118290.0,0.35173545]
[1753275898697,0.03425,118300.0,118290.0,0.35173545]
[1753275899145,0.04270244,118300.0,118290.0,0.35173545]
[1753275899577,0.04270244,118300.0,118290.0,0.36579367]
[1753275899798,0.0292,118300.0,118290.0,0.36579367]
[1753275900281,0.06598089,118300.0,118290.0,0.36579367]
[1753275900491,0.29864259,118300.0,118290.0,0.35173545]
[1753275900737,0.12958089,118300.0,118290.0,0.35173545]
[1753275900960,0.11267509,118300.0,118290.0,0.35173545]
[1753275901297,0.12112788,118300.0,118290.0,0.35173545]
[1753275901833,0.12958082,118300.0,118290.0,0.35173545]
[1753275902250,0.12112788,118300.0,118290.0,0.35173545]
[1753275902457,0.10422244,118300.0,118290.0,0.35173545]
[1753275902667,0.12958046,118300.0,118290.0,0.35173545]
[1753275902840,0.11267495,118300.0,118290.0,0.35173545]
[1753275903042,0.12112767,118300.0,118290.0,0.35173545]
[1753275903249,0.12958054,118300.0,118290.0,0.35173545]
[1753275903921,0.12112767,118300.0,118290.0,0.35173545]
[1753275904135,0.10422244,118300.0,118290.0,0.41058076]
[1753275904569,0.09577,118300.0,118290.0,0.41058076]
[1753275905450,0.0292,118300.0,118290.0,0.35173545]
[1753275907124,0.0292,118300.0,118290.0,0.73810891]
[1753275907357,0.0292,118300.0,118290.0,0.38243545]
[1753275907595,0.0292,118300.0,118290.0,0.87283523]
[1753275907834,0.0242,118300.0,118290.0,0.87283523]
[1753275908077,0.0212,118300.0,118290.0,0.95731253]
[1753275908552,0.0222,118300.0,118290.0,0.95731253]
[1753275908810,0.0222,118300.0,118290.0,1.29731253]
[1753275909020,0.0252,118300.0,118290.0,1.29731253]
[1753275910588,0.0252,118300.0,118290.0,0.94163907]
[1753275910794,0.0252,118300.0,118290.0,1.29731253]
[1753275911812,0.0252,118300.0,118290.0,0.94163907]
[1753275912049,0.0242,118300.0,118290.0,1.26451253]
[1753275912518,0.0222,118300.0,118290.0,1.26451253]
[1753275912754,0.0232,118300.0,118290.0,1.26451253]
[1753275915104,0.0232,118300.0,118290.0,1.29501253]
[1753275916170,0.0232,118300.0,118290.0,1.26451253]
[1753275916684,0.0232,118300.0,118290.0,1.29471253]
[1753275919392,0.0232,118300.0,118290.0,1.30282267]
[1753275920706,0.0232,118300.0,118290.0,1.30242267]
[1753275922209,0.0232,118300.0,118290.0,1.16290267]
[1753275922421,0.0232,118300.0,118290.0,1.30242267]
[1753275922628,0.0232,118300.0,118290.0,1.24152267]
[1753275923481,0.0232,118300.0,118290.0,1.15704537]
[1753275925476,0.0232,118300.0,118290.0,1.01752537]
[1753275925664,0.09077,118300.0,118290.0,1.15700537]
[1753275927825,0.09077,118300.0,118290.0,0.79322177]
[1753275928025,0.09077,118300.0,118290.0,1.15700537]
[1753275928441,0.09077,118300.0,118290.0,1.24148267]
[1753275928859,0.0232,118300.0,118290.0,1.24148267]
[1753275929464,0.0232,118300.0,118290.0,1.15700537]
[1753275929672,0.0232,118300.0,118290.0,0.79322177]
[1753275929864,0.05859,118300.0,118290.0,0.79322177]
[1753275930122,0.08949,118300.0,118290.0,1.15700537]
[1753275930712,0.08949,118300.0,118290.0,0.79322177]
[1753275930713,0.05718,118300.0,118290.0,0.79322177]
[1753275930973,0.0232,118300.0,118290.0,1.24148267]
[1753275932301,0.0232,118300.0,118290.0,0.79322177]
[1753275932503,0.0232,118300.0,118290.0,1.18239537]
[1753275932720,0.02628,118300.0,118290.0,1.18239537]
[1753275932925,0.09029,118300.0,118290.0,1.18239537]
[1753275933367,0.09029,118300.0,118290.0,1.18227537]
[1753275933843,0.09029,118300.0,118290.0,0.00047213]
[1753275933844,0.64004096,118300.0,118290.0,0.00047213]
[1753275934072,0.64004096,118300.0,118290.0,0.13983213]
[1753275934289,1.19004096,118300.0,118290.0,0.13983213]
[1753275934519,0.82625736,118300.0,118290.0,0.00047213]
[1753275934746,0.82625736,118300.0,118290.0,0.13979213]
[1753275934968,0.82525736,118300.0,118290.0,0.13979213]
[1753275935406,1.71270824,118300.0,118290.0,0.00047213]
[1753275935657,1.71270824,118300.0,118270.0,0.20296]
[1753275935658,0.24829881,118280.0,118270.0,0.20296]
[1753275935893,0.65348881,118280.0,118270.0,0.20343281]
[1753275936110,0.25348881,118280.0,118270.0,0.34275281]
[1753275936547,0.80348881,118280.0,118270.0,0.34275281]
[1753275936988,0.80848881,118280.0,118270.0,0.34275281]
[1753275937435,1.3984529,118280.0,118270.0,0.13979281]
[1753275938330,1.4014529,118280.0,118270.0,0.13979281]
[1753275938553,1.04596611,118280.0,118270.0,0.13979281]
[1753275940509,0.64596611,118280.0,118270.0,0.13979281]
[1753275942443,1.0014529,118280.0,118270.0,0.13979281]
[1753275942652,0.18606173,118240.0,118230.0,0.025403]
[1753275942863,0.0169171,118220.0,118210.0,0.21202578]
[1753275943071,0.25458343,118220.0,118210.0,0.166487]
[1753275943275,0.25458343,118220.0,118210.0,0.35305656]
[1753275943276,0.08540732,118220.0,118210.0,0.35305656]
[1753275943422,0.08540653,118220.0,118210.0,0.34456767]
[1753275943635,0.11078236,118220.0,118210.0,0.34456767]
[1753275943832,0.08540653,118220.0,118210.0,0.34456767]
[1753275944061,0.08840653,118220.0,118210.0,0.34456767]
[1753275944263,0.08840667,118220.0,118210.0,0.34456767]
[1753275944468,0.10532363,118220.0,118210.0,0.34456767]
[1753275944708,0.09686497,118220.0,118210.0,0.34456767]
[1753275944913,0.27450017,118220.0,118210.0,0.14154047]
[1753275945118,0.25758336,118220.0,118210.0,0.32764963]
[1753275945328,0.25758336,118220.0,118210.0,0.31919033]
[1753275945535,0.25758336,118220.0,118210.0,0.32764956]
[1753275945938,0.07994837,118220.0,118210.0,0.33610858]
[1753275946147,0.27449988,118220.0,118210.0,0.31919033]
[1753275946348,0.26604172,118220.0,118210.0,0.32764963]
[1753275946555,0.25758335,118220.0,118210.0,0.3276497]
[1753275946761,0.25758335,118220.0,118210.0,0.33610893]
[1753275946944,0.25758335,118220.0,118210.0,0.35302711]
[1753275946945,0.08840724,118220.0,118210.0,0.35302711]
[1753275947172,0.27450038,118220.0,118210.0,0.3276497]
[1753275947377,0.26604208,118220.0,118210.0,0.3276497]
[1753275947597,0.24912491,118220.0,118210.0,0.14154047]
[1753275947805,0.48360221,118220.0,118210.0,0.14154047]
[1753275948236,0.48460221,118220.0,118210.0,0.14154047]
[1753275949010,0.22249,118220.0,118210.0,0.34456796]
[1753275949212,0.07249,118220.0,118210.0,0.34456796]
[1753275949798,0.04129,118220.0,118210.0,0.34504796]
[1753275950033,0.04129,118220.0,118210.0,0.70053475]
[1753275950034,0.004,118220.0,118210.0,0.70053475]
[1753275951391,0.004,118220.0,118210.0,0.34504796]
[1753275951596,0.04844823,118220.0,118210.0,0.34456796]
[1753275951731,0.04844816,118220.0,118210.0,0.34456796]
[1753275951943,0.03999,118220.0,118210.0,0.34456796]
[1753275952147,0.08910639,118220.0,118210.0,0.34456796]
[1753275952637,0.07219,118220.0,118210.0,0.34456796]
[1753275953041,0.004,118220.0,118210.0,0.3972661]
[1753275953646,0.004,118220.0,118210.0,0.34504796]
[1753275953849,0.001,118220.0,118210.0,0.34504796]
[1753275954055,0.08975253,118230.0,118220.0,0.19455165]
[1753275954262,0.09186253,118230.0,118220.0,0.19455165]
[1753275954477,0.06649,118230.0,118220.0,0.19455165]
[1753275954686,0.06649,118230.0,118220.0,0.19360144]
[1753275954874,0.06649,118230.0,118220.0,0.19408144]
[1753275955132,0.03539,118230.0,118220.0,0.19408144]
[1753275955559,0.47650617,118240.0,118230.0,0.19453519]
[1753275955560,0.09576015,118240.0,118230.0,0.19453519]
[1753275955777,0.02928015,118240.0,118230.0,0.69398198]
[1753275955997,0.02928015,118240.0,118230.0,0.711431]
[1753275956261,0.02928015,118240.0,118230.0,1.1362083]
[1753275956482,0.02928015,118240.0,118230.0,1.1997083]
[1753275956698,0.03128015,118240.0,118230.0,1.2841856]
[1753275957337,0.03028015,118240.0,118230.0,1.2841856]
[1753275957559,0.02928015,118240.0,118230.0,1.28509552]
[1753275958199,0.02928015,118240.0,118230.0,0.78289143]
[1753275958434,0.03432015,118240.0,118230.0,0.44241143]
[1753275958659,0.10667695,118240.0,118230.0,0.29837143]
[1753275958909,0.1235909,118240.0,118230.0,0.17961981]
[1753275959119,0.29273889,118240.0,118230.0,0.33323783]
[1753275959306,0.29273889,118240.0,118230.0,0.15561809]
[1753275959557,0.29990075,118240.0,118230.0,0.01045809]
[1753275959774,0.29144367,118240.0,118230.0,0.14732]
[1753275960243,0.2914504,118240.0,118230.0,0.14732]
[1753275960456,0.4414504,118240.0,118230.0,0.14624]
[1753275960668,0.4424504,118240.0,118230.0,0.14624]
[1753275961561,0.4364104,118240.0,118230.0,0.14624]
[1753275961776,0.43588202,118240.0,118230.0,0.14624]
[1753275961893,0.45151484,118240.0,118230.0,0.14624]
[1753275962091,0.45151484,118240.0,118230.0,0.33231776]
[1753275962309,0.28236692,118240.0,118230.0,0.349233]
[1753275962715,0.27390984,118240.0,118230.0,0.349233]
[1753275962919,0.29082394,118240.0,118230.0,0.349233]
[1753275963129,0.29082394,118240.0,118230.0,0.348233]
[1753275963337,0.29928117,118240.0,118230.0,0.348233]
[1753275963544,0.28236678,118240.0,118230.0,0.348233]
[1753275963753,0.19691297,118240.0,118230.0,0.348713]
[1753275963992,0.04691297,118240.0,118230.0,0.70392213]
[1753275964196,0.04691297,118240.0,118230.0,0.77202733]
[1753275964564,0.04691297,118240.0,118230.0,0.90751979]
[1753275964963,0.04691297,118240.0,118230.0,0.552033]
[1753275965159,0.0533697,118240.0,118230.0,0.90751979]
[1753275965402,0.04491297,118240.0,118230.0,0.99199709]
[1753275965795,0.04591297,118240.0,118230.0,0.99199709]
[1753275966018,0.04691297,118240.0,118230.0,0.99199709]
[1753275966549,0.04691297,118240.0,118230.0,1.0093599]
[1753275966752,0.04691297,118240.0,118230.0,1.4672372]
[1753275966967,0.04691297,118240.0,118230.0,1.50026988]
[1753275967391,0.04691297,118240.0,118230.0,1.50020984]
[1753275967850,0.04591297,118240.0,118230.0,1.50020984]
[1753275968067,0.04491297,118240.0,118230.0,1.50020984]
[1753275968498,0.04491297,118240.0,118230.0,1.50008968]
[1753275968687,0.04491297,118240.0,118230.0,1.16008968]
[1753275969140,0.04496191,118240.0,118230.0,1.50008968]
[1753275969360,0.04496191,118240.0,118230.0,1.50208968]
[1753275970678,0.04496191,118240.0,118230.0,1.50108968]
[1753275971100,0.04496191,118240.0,118230.0,1.50708968]
[1753275971569,0.02928015,118240.0,118230.0,1.50708968]
[1753275971791,0.02928015,118240.0,118230.0,1.50608968]
[1753275972008,1e-08,118240.0,118230.0,1.51008968]
[1753275972228,1e-08,118240.0,118230.0,1.91557647]
[1753275973281,0.0157117,118280.0,118270.0,0.21191842]
[1753275973487,0.0157117,118280.0,118270.0,0.83731608]
[1753275973899,0.0157117,118280.0,118270.0,0.86271108]
[1753275974284,0.0157117,118280.0,118270.0,0.83731608]
[1753275974496,0.0157117,118280.0,118270.0,0.86317255]
[1753275974726,0.0177117,118280.0,118270.0,0.86317255]
[1753275975580,0.0177117,118280.0,118270.0,0.50768576]
[1753275975785,0.0177117,118280.0,118270.0,0.82337898]
[1753275976406,0.0177117,118280.0,118270.0,0.79798298]
[1753275976852,0.0157117,118280.0,118270.0,0.82337798]
[1753275977270,0.0177117,118280.0,118270.0,0.82337798]
[1753275977487,0.0177117,118280.0,118270.0,0.90785528]
[1753275977707,0.0157117,118280.0,118270.0,0.90785528]
[1753275978153,0.0157117,118280.0,118270.0,1.24785528]
[1753275978366,0.08585,118300.0,118290.0,0.19443651]
[1753275978577,0.07143716,118300.0,118290.0,0.93668552]
[1753275979502,0.07352716,118300.0,118290.0,0.93668552]
[1753275979716,0.06848716,118300.0,118290.0,0.93668552]
[1753275980361,0.07143716,118300.0,118290.0,0.93668552]
[1753275980986,0.07243716,118300.0,118290.0,0.93668552]
[1753275981206,0.07443716,118300.0,118290.0,0.93668552]
[1753275981418,0.07148716,118300.0,118290.0,0.93668552]
[1753275982307,0.0558,118300.0,118290.0,0.96148357]
[1753275983314,0.0558,118300.0,118290.0,0.92344135]
[1753275983550,0.05875,118300.0,118290.0,0.92344135]
[1753275984040,0.06084,118300.0,118290.0,0.56747456]
[1753275984300,0.10229251,118300.0,118290.0,0.56747456]
[1753275984539,0.10229244,118300.0,118290.0,0.56747456]
[1753275984778,0.09384,118300.0,118290.0,0.56747456]
[1753275985748,0.10229244,118300.0,118290.0,0.56747456]
[1753275986002,0.09384,118300.0,118290.0,0.56747456]
[1753275986243,0.0242,118300.0,118290.0,0.92344135]
[1753275987444,0.0232,118300.0,118290.0,0.92344135]
[1753275987654,0.0232,118300.0,118290.0,1.00791865]
[1753275988112,0.0212,118300.0,118290.0,0.65243186]
[1753275988329,0.0222,118300.0,118290.0,1.00791865]
[1753275988557,0.0222,118300.0,118290.0,1.09239595]
[1753275988763,0.0212,118300.0,118290.0,1.09239595]
[1753275989192,0.0222,118300.0,118290.0,1.09239595]
[1753275989630,0.0222,118300.0,118290.0,1.10984497]
[1753275989846,0.0222,118300.0,118290.0,1.11014497]
[1753275990067,0.0222,118300.0,118290.0,1.17684497]
[1753275990519,0.09031,118300.0,118290.0,0.50775186]
[1753275990746,0.09031,118300.0,118290.0,0.65251186]
[1753275991608,0.09031,118300.0,118290.0,0.56803456]
[1753275992062,0.09031,118300.0,118290.0,0.57647456]
[1753275992729,0.09031,118300.0,118290.0,0.61795086]
[1753275992936,0.09031,118300.0,118290.0,0.57647456]
[1753275994328,0.09031,118300.0,118290.0,0.57627456]
[1753275994964,0.09031,118300.0,118290.0,0.93176135]
[1753275996459,0.05831,118300.0,118290.0,0.93224135]
[1753275996772,0.05831,118300.0,118290.0,1.01671865]
[1753275997356,0.05831,118300.0,118290.0,0.55195651]
[1753275997567,0.09131,118300.0,118290.0,0.55195651]
[1753275997775,0.09131,118300.0,118290.0,0.9074433]
[1753275997977,0.09131,118300.0,118290.0,0.9069633]
[1753275998406,0.09131,118300.0,118290.0,0.55147651]
[1753275998619,0.09131,118300.0,118290.0,0.85037651]
[1753275998823,0.09976251,118300.0,118290.0,0.85037651]
[1753275999022,0.09976251,118300.0,118290.0,0.84957651]
[1753275999228,0.29418281,118300.0,118290.0,0.49433666]
[1753275999444,0.2857303,118300.0,118290.0,0.62105599]
[1753275999646,0.27727765,118300.0,118290.0,0.45198]
[1753275999872,0.27727765,118300.0,118290.0,0.62105599]
[1753276000236,0.27727765,118300.0,118290.0,0.63696322]
[1753276000578,0.27727765,118300.0,118290.0,0.62850971]
[1753276000806,0.26782478,118300.0,118290.0,0.45098]
[1753276001047,0.2613717,118300.0,118290.0,0.45098]
[1753276001379,0.2483835,118290.0,118280.0,0.70469294]
[1753276001584,0.2534935,118290.0,118280.0,0.86518724]
[1753276001782,0.07596337,118290.0,118280.0,0.86518724]
[1753276002043,0.10132361,118290.0,118280.0,0.88209547]
[1753276002244,0.26194645,118290.0,118280.0,0.87364146]
[1753276002421,0.26194645,118290.0,118280.0,0.86518724]
[1753276002652,0.24503964,118290.0,118280.0,0.5019]
[1753276002837,0.24503964,118290.0,118280.0,0.65362]
[1753276003038,0.24503964,118290.0,118280.0,0.66207451]
[1753276003250,0.24603964,118290.0,118280.0,0.8311648]
[1753276003449,0.23758599,118290.0,118280.0,0.8311648]
[1753276003698,0.23758599,118290.0,118280.0,0.65362]
[1753276003838,0.23758599,118290.0,118280.0,0.66207451]
[1753276004037,0.23958599,118290.0,118280.0,0.65362]
[1753276004368,0.57958599,118290.0,118280.0,0.65362]
[1753276004536,0.57958599,118290.0,118280.0,0.35472]
[1753276004984,0.59531291,118290.0,118280.0,0.35472]
[1753276006431,0.60376663,118290.0,118280.0,0.52381029]
[1753276006631,0.58803971,118290.0,118280.0,0.36317451]
[1753276006836,0.58803971,118290.0,118280.0,0.35472]
[1753276007477,0.58803971,118290.0,118280.0,0.36317451]
[1753276007686,0.58803971,118290.0,118280.0,0.35472]
[1753276008336,0.58803971,118290.0,118280.0,0.60828759]
[1753276008337,0.07896329,118290.0,118280.0,0.60828759]
[1753276008553,0.07896315,118290.0,118280.0,0.98913705]
[1753276008767,0.06835,118290.0,118280.0,0.90513975]
[1753276008976,0.0654,118290.0,118280.0,0.90513975]
[1753276009193,0.0353,118290.0,118280.0,0.90513975]
[1753276010365,0.03825,118290.0,118280.0,0.54965296]
[1753276010647,0.07091,118290.0,118280.0,0.84855296]
[1753276011093,0.04041,118290.0,118280.0,0.84855296]
[1753276013344,0.04041,118290.0,118280.0,1.20403975]
[1753276015003,0.04041,118290.0,118280.0,1.20251975]
[1753276015207,0.00811,118290.0,118280.0,1.20251975]
[1753276015621,0.00811,118290.0,118280.0,1.05231975]
[1753276015826,0.07231,118290.0,118280.0,1.20239975]
[1753276016434,0.07231,118290.0,118280.0,0.84691296]
[1753276017268,0.24759881,118280.0,118270.0,0.00046047]
[1753276017415,0.24759881,118280.0,118240.0,0.02479169]
[1753276017416,0.336046,118250.0,118240.0,0.02479169]
[1753276017616,0.07851367,118240.0,118230.0,0.18607679]
[1753276017823,0.09209075,118240.0,118230.0,0.16916098]
[1753276018019,0.03895744,118230.0,118220.0,0.19452459]
[1753276018232,0.08513495,118230.0,118220.0,0.34440459]
[1753276018533,0.06822,118230.0,118220.0,0.34639459]
[1753276018656,0.01060744,118230.0,118220.0,0.34639459]
[1753276018864,0.05136502,118230.0,118220.0,0.34635459]
[1753276019062,0.06877363,118230.0,118220.0,0.34635523]
[1753276019266,0.27380543,118230.0,118220.0,0.36104762]
[1753276019468,0.27380543,118230.0,118220.0,0.36950621]
[1753276019688,0.0877281,118230.0,118220.0,0.38642302]
[1753276019987,0.08772818,118230.0,118220.0,0.38642309]
[1753276020182,0.07927052,118230.0,118220.0,0.38642302]
[1753276020596,0.0877281,118230.0,118220.0,0.38642302]
[1753276020983,0.08772803,118230.0,118220.0,0.38642302]
[1753276021202,0.09618569,118230.0,118220.0,0.38642302]
[1753276021607,0.08772803,118230.0,118220.0,0.38642302]
[1753276021808,0.07081308,118230.0,118220.0,0.43010373]
[1753276022029,0.08772818,118230.0,118220.0,0.38742302]
[1753276022265,0.08772818,118230.0,118220.0,0.36230904]
[1753276022484,0.27380579,118230.0,118220.0,0.35385074]
[1753276022699,0.27380579,118230.0,118220.0,0.36230918]
[1753276022700,0.28226388,118230.0,118220.0,0.36230918]
[1753276022919,0.27380644,118230.0,118220.0,0.36230918]
[1753276023045,0.26534835,118230.0,118220.0,0.36230875]
[1753276023254,0.08772854,118230.0,118220.0,0.33693321]